[Event "Serbian-ch Semifinal Women 2024"]
[Site "Paracin"]
[Date "2024.02.08"]
[Round "5.2"]
[White "Stankovic, Andrea"]
[Black "Grozdanovic, Anastasia"]
[Result "0-1"]
[ECO "D66"]
[WhiteElo "1714"]
[BlackElo "2051"]
[Annotator "RC"]
[PlyCount "158"]
[EventDate "2024.02.04"]
[EventType "swiss"]
[EventCountry "SRB"]
[SourceTitle "playchess.com"]
[Source "ChessBase"]
[SourceQuality "1"]
[TimeControl "40/5400+30:1800+30"]

1. d4 {[%emt 0:00:02]} d5 {[%emt 0:00:08]} 2. Nf3 {[%emt 0:00:05]} Nf6 {[%emt 0:00:04]} 3. c4 {[%emt 0:00:06]} e6 {[%emt 0:00:14]} 4. Bg5 {[%emt 0:00:08]} Be7 {[%emt 0:02:15]} 5. Nc3 {[%emt 0:00:06]} h6 {[%emt 0:00:06]} 6. Bh4 {[%emt 0:00:06]} O-O {[%emt 0:00:07]} 7. e3 {[%emt 0:00:04]} Nbd7 {[%emt 0:00:21]} 8. Rc1 {[%emt 0:00:08]} c6 {[%emt 0:02:51]} 9. Bd3 {[%emt 0:00:34]} dxc4 {[%emt 0:00:19]} 10. Bxc4 {[%emt 0:00:07]} b5 {[%emt 0:00:03]} 11. Bd3 {[%emt 0:00:14]} a6 {[%emt 0:01:01]} 12. O-O {[%emt 0:01:36]} Bb7 {[%emt 0:03:46]} 13. Bxf6 {[%emt 0:00:49]} Nxf6 {[%emt 0:07:16]} 14. Ne4 {[%emt 0:00:05]} Rc8 {[%emt 0:06:06]} 15. Nc5 {[%emt 0:01:01]} Bxc5 {[%emt 0:04:03]} 16. dxc5 {[%emt 0:00:25]} Qc7 {[%emt 0:01:00]} 17. Bb1 {[%emt 0:21:37]} Rcd8 {[%emt 0:06:44]} 18. Qc2 {[%emt 0:00:14]} Bc8 {[%emt 0:01:15]} 19. e4 {[%emt 0:00:41]} e5 {[%emt 0:02:43]} 20. Qc3 {[%emt 0:00:49]} Rfe8 {[%emt 0:02:28]} 21. h3 {[%emt 0:03:49]} Nh5 {[%emt 0:02:44]} 22. Rcd1 {[%emt 0:02:18]} Nf4 {[%emt 0:07:49]} 23. Kh2 {[%emt 0:03:52]} f6 {[%emt 0:05:45]} 24. Bc2 {[%emt 0:03:34]} a5 {[%emt 0:03:19]} 25. a3 {[%emt 0:04:15]} a4 {[%emt 0:05:18]} 26. b3 {[%emt 0:01:23]} axb3 {[%emt 0:02:01]} 27. Bxb3+ {[%emt 0:00:09]} Kh7 {[%emt 0:01:45]} 28. a4 {[%emt 0:07:49]} bxa4 {[%emt 0:00:40]} 29. Bc4 {[%emt 0:00:07]} Rxd1 {[%emt 0:05:31]} 30. Rxd1 {[%emt 0:00:12]} Rd8 {[%emt 0:00:12]} 31. Ra1 {[%emt 0:01:21]} Qd7 {[%emt 0:01:14]} 32. Rxa4 {[%emt 0:02:48]} Nxh3 {[%emt 0:11:45]} 33. Nxe5 {[%emt 0:03:51]} Qd1 {[%emt 0:05:50]} 34. Ra1 {[%emt 0:01:31]} Qh5 {[%emt 0:00:37]} 35. gxh3 {[%emt 0:02:36]} fxe5 {[%emt 0:10:40]} 36. Qg3 {[%emt 0:04:17]} Rd4 {[%emt 0:00:00]} 37. Bf1 {[%emt 0:07:49]} Qf7 {[%emt 0:00:00]} 38. Ra8 {[%emt 0:23:22]} Be6 {[%emt 0:00:00]} 39. Ra3 {[%emt 0:01:22]} Bc4 {[%emt 0:00:39]} 40. Qxe5 {[%emt 0:02:20]} Qxf2+ {[%emt 0:01:01]} 41. Bg2 {[%emt 0:30:10]} Rd1 {[%emt 0:05:06]} 42. Qf5+ {[%emt 0:00:00]} Qxf5 {[%emt 0:00:04]} 43. exf5 {[%emt 0:00:00]} Bd5 {[%emt 0:00:25]} 44. Bf3 {[%emt 0:00:00]} Bxf3 {[%emt 0:00:28]} 45. Rxf3 {[%emt 0:00:00]} Rc1 {[%emt 0:00:51]} 46. f6 {[%emt 0:00:00]} gxf6 {[%emt 0:00:19]} 47. Rxf6 {[%emt 0:00:00]} Rxc5 {[%emt 0:00:04]} 48. Kg3 {[%emt 0:00:00]} Kg7 {[%emt 0:03:48]} 49. Rd6 {[%emt 0:00:00]} Rc1 {[%emt 0:01:23]} 50. Kh4 {[%emt 0:00:00]} Rc3 {[%emt 0:01:09]} 51. Kg4 {[%emt 0:00:00]} Rc5 {[%emt 0:00:59]} 52. h4 {[%emt 0:00:00]} h5+ {[%emt 0:01:25]} 53. Kf4 {[%emt 0:00:00]} Kf7 {[%emt 0:00:32]} 54. Rh6 {[%emt 0:00:00]} Ke7 {[%emt 0:03:07]} 55. Ke4 {[%emt 0:00:00]} Kd7 {[%emt 0:01:41]} 56. Kd4 {[%emt 0:00:00]} Ra5 {[%emt 0:00:37]} 57. Kc3 {[%emt 0:00:00]} Kc7 {[%emt 0:00:28]} 58. Kb3 {[%emt 0:00:00]} Kb6 {[%emt 0:01:12]} 59. Rg6 {[%emt 0:00:00]} Rc5 {[%emt 0:02:12]} 60. Rg5 {[%emt 0:00:00]} Kb5 {[%emt 0:00:07]} 61. Rg6 {[%emt 0:00:00]} Rd5 {[%emt 0:00:41]} 62. Kc3 {[%emt 0:00:00]} Kc5 {[%emt 0:00:25]} 63. Rg7 {[%emt 0:02:00]} Rf5 {[%emt 0:01:54]} 64. Rg6 {[%emt 0:00:37]} Kd5 {[%emt 0:01:17]} 65. Rg8 {[%emt 0:01:52]} Ke4 {[%emt 0:05:05]} 66. Rc8 {[%emt 0:02:29]} c5 {[%emt 0:00:48]} 67. Kc4 {[%emt 0:01:19]} Kf3 {[%emt 0:00:25]} 68. Rg8 {[%emt 0:00:37]} Rf4+ {[%emt 0:01:16]} 69. Kxc5 {[%emt 0:00:10]} Rxh4 {[%emt 0:00:11]} 70. Rh8 {[%emt 0:01:51]} Kg3 {[%emt 0:00:57]} 71. Kd5 {[%emt 0:00:52]} Ra4 {[%emt 0:00:18]} 72. Rg8+ {[%emt 0:00:40]} Rg4 {[%emt 0:01:12]} 73. Rb8 {[%emt 0:00:39]} h4 {[%emt 0:00:25]} 74. Rb3+ {[%emt 0:00:09]} Kh2 {[%emt 0:00:10]} 75. Rb2+ {[%emt 0:00:48]} Rg2 {[%emt 0:00:06]} 76. Rb3 {[%emt 0:00:26]} Rf2 {[%emt 0:00:49]} 77. Ke4 {[%emt 0:00:30]} h3 {[%emt 0:00:39]} 78. Rb6 {[%emt 0:04:11]} Kg1 {[%emt 0:00:48]} 79. Ke3 {[%emt 0:00:29]} h2 {[%emt 0:00:44]} 0-1

[Event "Serbian-ch Semifinal Women 2024"]
[Site "Paracin"]
[Date "2024.02.08"]
[Round "5.3"]
[White "Tadic, Ana"]
[Black "Srdanovic, Jovana"]
[Result "1/2-1/2"]
[ECO "D55"]
[WhiteElo "1746"]
[BlackElo "2121"]
[Annotator "NA RC"]
[PlyCount "54"]
[EventDate "2024.02.04"]
[EventType "swiss"]
[EventCountry "SRB"]
[SourceTitle "playchess.com"]
[Source "ChessBase"]
[SourceQuality "1"]
[TimeControl "40/5400+30:1800+30"]

1. Nf3 {[%emt 0:00:07]} d5 {[%emt 0:04:26]} 2. d4 {[%emt 0:00:36]} Nf6 {[%emt 0:00:15]} 3. c4 {[%emt 0:00:20]} e6 {[%emt 0:00:35]} 4. Bg5 {[%emt 0:00:49]} Be7 {[%emt 0:00:13]} 5. e3 {[%emt 0:01:37]} O-O {[%emt 0:00:19]} 6. Nc3 {[%emt 0:00:57]} a6 {[%emt 0:00:54]} 7. cxd5 {[%emt 0:07:15]} exd5 {[%emt 0:00:18]} 8. Bd3 {[%emt 0:00:24]} c6 {[%emt 0:00:24]} 9. h3 {[%emt 0:02:57]} Nbd7 {[%emt 0:00:45]} 10. O-O {[%emt 0:01:06]} Re8 {[%emt 0:05:58]} 11. Qc2 {[%emt 0:06:40]} Nf8 {[%emt 0:00:37]} 12. Rab1 {[%emt 0:05:51]} Nh5 {[%emt 0:10:04]} 13. Bxe7 {[%emt 0:03:28]} Qxe7 {[%emt 0:00:16]} 14. b4 {[%emt 0:08:42]} g6 {[%emt 0:07:10]} 15. a4 {[%emt 0:05:14]} Ng7 {[%emt 0:02:47]} 16. b5 {[%emt 0:04:33]} axb5 {[%emt 0:01:04]} 17. axb5 {[%emt 0:00:10]} Bf5 $14 {[%emt 0:05:49]} 18. bxc6 {[%emt 0:06:12]} bxc6 {[%emt 0:00:51]} 19. Ne5 {[%emt 0:03:27]} Bxd3 {[%emt 0:07:30]} 20. Qxd3 {[%emt 0:06:27]} Rec8 {[%emt 0:10:58]} 21. Rb6 {[%emt 0:08:16]} Qa3 {[%emt 0:22:01]} 22. Rxc6 {[%emt 0:22:15]} Rxc6 {[%emt 0:00:29]} 23. Nxc6 {[%emt 0:00:17]} Rc8 {[%emt 0:01:05]} 24. Qb5 {[%emt 0:00:18]} Qxc3 {[%emt 0:04:13]} 25. Ne7+ {[%emt 0:00:03]} Kh8 {[%emt 0:00:04]} 26. Nxc8 {[%emt 0:00:04]} Qxc8 {[%emt 0:00:06]} 27. Qxd5 {[%emt 0:00:03]} Kg8 {[%emt 0:00:51]} 1/2-1/2

[Event "Serbian-ch Semifinal Women 2024"]
[Site "Paracin"]
[Date "2024.02.09"]
[Round "6.1"]
[White "Grozdanovic, Anastasia"]
[Black "Tadic, Ana"]
[Result "1-0"]
[ECO "D23"]
[WhiteElo "2051"]
[BlackElo "1746"]
[Annotator "NA RC"]
[PlyCount "67"]
[EventDate "2024.02.04"]
[EventType "swiss"]
[EventCountry "SRB"]
[SourceTitle "playchess.com"]
[Source "ChessBase"]
[SourceQuality "1"]
[TimeControl "40/5400+30:1800+30"]

1. d4 {[%emt 0:00:02]} d5 {[%emt 0:00:08]} 2. c4 {[%emt 0:00:08]} dxc4 {[%emt 0:00:09]} 3. Nf3 {[%emt 0:00:14]} Nf6 {[%emt 0:00:10]} 4. Qa4+ {[%emt 0:00:04]} c6 {[%emt 0:23:26]} 5. Qxc4 {[%emt 0:00:14]} Bf5 {[%emt 0:03:34]} 6. g3 {[%emt 0:01:37]} e6 {[%emt 0:03:47]} 7. Bg2 {[%emt 0:02:40]} Nbd7 {[%emt 0:03:47]} 8. O-O {[%emt 0:05:56]} Be7 $11 {[%emt 0:08:19]} 9. e3 {[%emt 0:04:39]} O-O {[%emt 0:04:08]} 10. Nc3 {[%emt 0:03:20]} Nb6 {[%emt 0:13:49]} 11. Qe2 {[%emt 0:00:42]} Ne4 {[%emt 0:04:41]} 12. Ne5 {[%emt 0:05:33]} Nxc3 {[%emt 0:05:08]} 13. bxc3 {[%emt 0:00:07]} f6 {[%emt 0:03:21]} 14. e4 {[%emt 0:06:28]} fxe5 {[%emt 0:01:26]} 15. exf5 {[%emt 0:00:10]} exf5 {[%emt 0:00:28]} 16. Qxe5 {[%emt 0:05:31]} Qd7 {[%emt 0:04:05]} 17. Qe2 {[%emt 0:06:58]} Rae8 {[%emt 0:01:22]} 18. a4 {[%emt 0:03:13]} Bf6 {[%emt 0:04:03]} 19. Qa2+ {[%emt 0:01:29]} Qf7 {[%emt 0:00:51]} 20. a5 {[%emt 0:04:45]} Qxa2 {[%emt 0:03:46]} 21. Rxa2 {[%emt 0:00:05]} Nd5 {[%emt 0:01:54]} 22. Bd2 {[%emt 0:04:41]} a6 {[%emt 0:03:01]} 23. Rb1 {[%emt 0:02:15]} Rf7 {[%emt 0:04:16]} 24. c4 {[%emt 0:07:30]} Ne7 {[%emt 0:00:04]} 25. Rxb7 {[%emt 0:01:44]} Bxd4 {[%emt 0:00:06]} 26. Bg5 {[%emt 0:00:24]} Bf6 {[%emt 0:00:57]} 27. Bxf6 {[%emt 0:00:09]} Rxf6 {[%emt 0:00:05]} 28. Re2 {[%emt 0:01:57]} Kf8 {[%emt 0:00:18]} 29. f4 {[%emt 0:01:32]} Rd6 {[%emt 0:00:40]} 30. Ra7 {[%emt 0:02:12]} Rd4 {[%emt 0:00:58]} 31. Bf1 {[%emt 0:00:17]} Nc8 {[%emt 0:00:49]} 32. Rxe8+ {[%emt 0:01:22]} Kxe8 {[%emt 0:00:05]} 33. Rxg7 {[%emt 0:02:57]} Rd7 {[%emt 0:01:32]} 34. Rg8+ {[%emt 0:00:09]} 1-0

[Event "Serbian-ch Semifinal Women 2024"]
[Site "Paracin"]
[Date "2024.02.09"]
[Round "6.2"]
[White "Milicevic, Dunja"]
[Black "Vujovic, Vera"]
[Result "0-1"]
[ECO "C78"]
[WhiteElo "1461"]
[BlackElo "2123"]
[Annotator "NA RC"]
[PlyCount "70"]
[EventDate "2024.02.04"]
[EventType "swiss"]
[EventCountry "SRB"]
[SourceTitle "playchess.com"]
[Source "ChessBase"]
[SourceQuality "1"]
[TimeControl "40/5400+30:1800+30"]

1. e4 {[%emt 0:00:03]} e5 {[%emt 0:00:28]} 2. Nf3 {[%emt 0:00:20]} Nc6 {[%emt 0:00:18]} 3. Bb5 {[%emt 0:00:17]} a6 {[%emt 0:00:11]} 4. Ba4 {[%emt 0:00:29]} b5 {[%emt 0:00:10]} 5. Bb3 {[%emt 0:00:08]} Bc5 {[%emt 0:00:11]} 6. O-O {[%emt 0:01:37]} Nf6 {[%emt 0:00:29]} 7. d3 {[%emt 0:01:16]} d6 {[%emt 0:00:41]} 8. c3 {[%emt 0:00:53]} Bb6 {[%emt 0:00:37]} 9. h3 {[%emt 0:04:09]} O-O {[%emt 0:00:58]} 10. Re1 {[%emt 0:01:03]} Ne7 {[%emt 0:03:26]} 11. Nbd2 {[%emt 0:01:01]} Ng6 {[%emt 0:01:19]} 12. Nf1 {[%emt 0:00:44]} h6 {[%emt 0:00:44]} 13. Ng3 {[%emt 0:02:30]} Be6 {[%emt 0:02:00]} 14. Rf1 {[%emt 0:09:18]} Qc8 {[%emt 0:04:58]} 15. Kh2 {[%emt 0:05:24]} Re8 {[%emt 0:01:17]} 16. Ng1 {[%emt 0:03:11]} ({Better is} 16. a4 $11) 16... c5 $15 {[%emt 0:04:33]} 17. Bxe6 {[%emt 0:04:58]} fxe6 {[%emt 0:01:56]} 18. f4 {[%emt 0:01:36]} exf4 {[%emt 0:00:44]} 19. Bxf4 {[%emt 0:00:18]} Nxf4 {[%emt 0:00:19]} 20. Rxf4 {[%emt 0:00:08]} Bc7 {[%emt 0:00:41]} 21. Rf3 {[%emt 0:04:24]} d5 {[%emt 0:01:40]} 22. Qe1 {[%emt 0:08:58]} Qb8 {[%emt 0:02:43]} 23. Kh1 {[%emt 0:02:02]} c4 {[%emt 0:11:23]} 24. N1e2 {[%emt 0:11:53]} cxd3 {[%emt 0:01:51]} 25. Rxd3 {[%emt 0:00:46]} dxe4 {[%emt 0:00:09]} 26. Re3 {[%emt 0:01:31]} Bb6 {[%emt 0:00:32]} 27. Nd4 {[%emt 0:00:53]} e5 {[%emt 0:00:36]} 28. Ndf5 {[%emt 0:02:29]} Bxe3 {[%emt 0:00:27]} 29. Qxe3 {[%emt 0:00:08]} Qa7 {[%emt 0:00:29]} 30. Nxe4 {[%emt 0:02:31]} Qxe3 {[%emt 0:01:28]} 31. Nxf6+ {[%emt 0:00:08]} gxf6 {[%emt 0:01:11]} 32. Nxe3 {[%emt 0:00:09]} Rad8 {[%emt 0:00:15]} 33. Ng4 {[%emt 0:00:47]} Kg7 {[%emt 0:00:13]} 34. a4 {[%emt 0:00:56]} f5 {[%emt 0:00:45]} 35. Nh2 {[%emt 0:02:44]} bxa4 {[%emt 0:00:31]} 0-1

[Event "Serbian-ch Semifinal Women 2024"]
[Site "Paracin"]
[Date "2024.02.09"]
[Round "6.3"]
[White "Radenkovic, Mila"]
[Black "Bukhteeva, Viktoria"]
[Result "1/2-1/2"]
[ECO "A27"]
[WhiteElo "1741"]
[BlackElo "2070"]
[Annotator "NA RC"]
[PlyCount "99"]
[EventDate "2024.02.04"]
[EventType "swiss"]
[EventCountry "SRB"]
[SourceTitle "playchess.com"]
[Source "ChessBase"]
[SourceQuality "1"]
[TimeControl "40/5400+30:1800+30"]

1. c4 {[%emt 0:00:10]} e5 {[%emt 0:00:34]} 2. Nc3 {[%emt 0:00:41]} Nc6 {[%emt 0:00:04]} 3. g3 {[%emt 0:00:55]} f5 {[%emt 0:00:04]} 4. Nf3 {[%emt 0:02:28]} Nf6 {[%emt 0:00:25]} 5. d4 {[%emt 0:00:55]} e4 {[%emt 0:01:24]} 6. Nh4 {[%emt 0:00:38]} d6 {[%emt 0:05:07]} 7. Ng2 {[%emt 0:08:51]} Be7 {[%emt 0:05:17]} 8. Bg5 {[%emt 0:01:46]} Ng4 {[%emt 0:01:31]} 9. Bxe7 {[%emt 0:09:07]} Qxe7 {[%emt 0:00:13]} 10. Nd5 {[%emt 0:00:49]} Qf7 {[%emt 0:00:32]} 11. Qa4 {[%emt 0:07:40]} O-O {[%emt 0:02:32]} 12. e3 {[%emt 0:01:34]} Nd8 $11 {[%emt 0:01:08]} 13. h3 {[%emt 0:07:18]} Nf6 {[%emt 0:03:33]} 14. Ngf4 {[%emt 0:04:15]} c6 {[%emt 0:03:19]} 15. Nxf6+ {[%emt 0:01:45]} Qxf6 {[%emt 0:00:04]} 16. O-O-O {[%emt 0:00:39]} Ne6 {[%emt 0:10:40]} 17. Ne2 {[%emt 0:05:35]} a6 {[%emt 0:05:51]} 18. Kb1 {[%emt 0:07:35]} Rb8 {[%emt 0:02:02]} 19. Qb4 {[%emt 0:01:53]} Rd8 {[%emt 0:07:51]} 20. Qb6 {[%emt 0:08:03]} Nf8 {[%emt 0:00:39]} 21. d5 {[%emt 0:05:44]} Nd7 {[%emt 0:07:10]} 22. Qc7 {[%emt 0:04:33]} c5 {[%emt 0:06:06]} 23. Nf4 {[%emt 0:01:54]} Re8 {[%emt 0:00:44]} 24. Ne6 {[%emt 0:02:50]} Qe7 {[%emt 0:02:08]} 25. Be2 {[%emt 0:01:34]} b6 {[%emt 0:01:26]} 26. Qc6 {[%emt 0:02:19]} Ne5 {[%emt 0:00:41]} 27. Qa4 {[%emt 0:02:49]} Bxe6 {[%emt 0:05:28]} 28. dxe6 {[%emt 0:00:02]} Ra8 {[%emt 0:00:57]} 29. Qb3 {[%emt 0:01:05]} Qc7 {[%emt 0:01:36]} 30. g4 {[%emt 0:02:05]} fxg4 {[%emt 0:00:47]} 31. hxg4 {[%emt 0:00:14]} Rxe6 {[%emt 0:00:12]} 32. Qc2 {[%emt 0:01:06]} Nc6 {[%emt 0:03:46]} 33. f4 {[%emt 0:01:30]} Rf8 {[%emt 0:05:17]} 34. Rh5 {[%emt 0:01:52]} g6 {[%emt 0:01:59]} 35. Rh2 {[%emt 0:01:23]} Ne7 {[%emt 0:03:17]} 36. Rdh1 {[%emt 0:00:15]} Rf7 {[%emt 0:00:07]} 37. Qa4 {[%emt 0:01:22]} Qc6 {[%emt 0:02:36]} 38. Qxa6 {[%emt 0:01:06]} Nc8 {[%emt 0:06:51]} 39. Qa3 {[%emt 0:00:05]} Ne7 {[%emt 0:02:53]} 40. Qb3 {[%emt 0:01:39]} Qc7 {[%emt 0:02:14]} 41. Qc3 {[%emt 0:31:09]} Qd8 {[%emt 0:08:26]} 42. Rh6 {[%emt 0:00:00]} Qf8 {[%emt 0:01:53]} 43. Qb3 {[%emt 0:00:00]} Qd8 {[%emt 0:05:04]} 44. R6h2 {[%emt 0:00:00]} Nc6 {[%emt 0:01:12]} 45. a3 {[%emt 0:00:00]} Re8 {[%emt 0:02:41]} 46. Qd1 {[%emt 0:00:00]} Ne7 {[%emt 0:02:34]} 47. Bf1 {[%emt 0:00:00]} Qd7 {[%emt 0:00:45]} 48. Rd2 {[%emt 0:00:00]} Rd8 {[%emt 0:00:14]} 49. Bh3 {[%emt 0:00:00]} Qe6 {[%emt 0:01:48]} 50. Bf1 {[%emt 0:00:00]} 1/2-1/2

[Event "Serbian-ch Semifinal Women 2024"]
[Site "Paracin"]
[Date "2024.02.09"]
[Round "7.1"]
[White "Vujovic, Vera"]
[Black "Radenkovic, Mila"]
[Result "1-0"]
[ECO "B06"]
[WhiteElo "2123"]
[BlackElo "1741"]
[Annotator "NA RC"]
[PlyCount "99"]
[EventDate "2024.02.04"]
[EventType "swiss"]
[EventCountry "SRB"]
[SourceTitle "playchess.com"]
[Source "ChessBase"]
[SourceQuality "1"]
[TimeControl "40/5400+30:1800+30"]

1. e4 {[%emt 0:00:05]} g6 {[%emt 0:00:18]} 2. d4 {[%emt 0:00:30]} d6 {[%emt 0:00:41]} 3. Nf3 {[%emt 0:01:07]} Bg7 {[%emt 0:00:28]} 4. Nc3 {[%emt 0:00:18]} a6 {[%emt 0:05:19]} 5. Be3 {[%emt 0:02:25]} b5 {[%emt 0:07:06]} 6. Bd3 {[%emt 0:01:17]} Bb7 {[%emt 0:01:51]} 7. Qd2 {[%emt 0:02:55]} Nd7 {[%emt 0:06:53]} 8. Ne2 {[%emt 0:10:33]} h5 {[%emt 0:03:51]} 9. O-O {[%emt 0:03:52]} Ngf6 {[%emt 0:05:32]} 10. e5 {[%emt 0:01:04]} dxe5 {[%emt 0:11:27]} 11. dxe5 {[%emt 0:00:08]} Ne4 {[%emt 0:00:38]} 12. Bxe4 {[%emt 0:01:03]} Bxe4 {[%emt 0:00:02]} 13. e6 {[%emt 0:01:24]} Ne5 {[%emt 0:05:43]} 14. Qxd8+ {[%emt 0:12:21]} Rxd8 {[%emt 0:00:21]} 15. Ng5 {[%emt 0:00:24]} Bf5 {[%emt 0:08:46]} 16. Bd4 {[%emt 0:01:15]} O-O {[%emt 0:03:03]} 17. Bxe5 {[%emt 0:15:31]} Bxe5 {[%emt 0:00:30]} 18. exf7+ {[%emt 0:00:27]} Kg7 {[%emt 0:03:57]} 19. Ng3 {[%emt 0:02:57]} Bc8 {[%emt 0:00:04]} 20. c3 {[%emt 0:02:37]} Rd2 {[%emt 0:11:41]} 21. Rab1 {[%emt 0:03:36]} Rd5 {[%emt 0:10:37]} 22. N3e4 {[%emt 0:02:31]} Bf6 {[%emt 0:01:54]} 23. f4 {[%emt 0:02:17]} Bf5 {[%emt 0:00:03]} 24. Rbe1 {[%emt 0:00:53]} Bxe4 {[%emt 0:03:25]} 25. Ne6+ {[%emt 0:03:53]} Kxf7 {[%emt 0:00:04]} 26. Rxe4 {[%emt 0:00:40]} Rc8 {[%emt 0:00:24]} 27. Ng5+ {[%emt 0:03:54]} Kg8 {[%emt 0:00:23]} 28. Re6 {[%emt 0:00:50]} Rd6 {[%emt 0:00:39]} 29. Rfe1 {[%emt 0:01:00]} Rcd8 {[%emt 0:01:26]} 30. R6e2 {[%emt 0:02:51]} c6 {[%emt 0:01:15]} 31. Ne6 {[%emt 0:02:53]} R8d7 {[%emt 0:00:11]} 32. Nc5 {[%emt 0:00:16]} Ra7 {[%emt 0:00:07]} 33. Ne4 {[%emt 0:00:15]} Kf7 {[%emt 0:06:55]} 34. Nxd6+ {[%emt 0:00:19]} exd6 {[%emt 0:00:01]} 35. Re8 {[%emt 0:02:58]} c5 {[%emt 0:00:55]} 36. Rc8 {[%emt 0:00:40]} Be7 {[%emt 0:00:04]} 37. h3 {[%emt 0:01:04]} h4 {[%emt 0:00:13]} 38. g3 {[%emt 0:00:49]} hxg3 {[%emt 0:00:19]} 39. Kg2 {[%emt 0:00:06]} a5 {[%emt 0:00:41]} 40. Rb8 {[%emt 0:01:11]} b4 {[%emt 0:00:15]} 41. a3 {[%emt 0:31:33]} bxa3 {[%emt 0:07:09]} 42. bxa3 {[%emt 0:00:00]} d5 {[%emt 0:01:30]} 43. Rd1 {[%emt 0:00:00]} Rd7 {[%emt 0:00:24]} 44. Ra8 {[%emt 0:00:00]} Bd8 {[%emt 0:00:35]} 45. Kxg3 {[%emt 0:00:00]} d4 {[%emt 0:01:51]} 46. cxd4 {[%emt 0:00:00]} cxd4 {[%emt 0:00:40]} 47. Kf3 {[%emt 0:00:00]} Bb6 {[%emt 0:00:48]} 48. Ra6 {[%emt 0:00:00]} Rd6 {[%emt 0:00:29]} 49. Rb1 {[%emt 0:00:00]} Bc5 {[%emt 0:01:14]} 50. Rxa5 {[%emt 0:00:00]} 1-0

[Event "Serbian-ch Semifinal Women 2024"]
[Site "Paracin"]
[Date "2024.02.09"]
[Round "7.2"]
[White "Stankovic, Andrea"]
[Black "Milicevic, Dunja"]
[Result "1-0"]
[ECO "D43"]
[WhiteElo "1714"]
[BlackElo "1461"]
[Annotator "NA"]
[PlyCount "39"]
[EventDate "2024.02.04"]
[EventType "swiss"]
[EventCountry "SRB"]
[SourceTitle "playchess.com"]
[Source "ChessBase"]
[SourceQuality "1"]
[TimeControl "40/5400+30:1800+30"]

1. d4 {[%emt 0:00:02]} d5 {[%emt 0:00:12]} 2. Nf3 {[%emt 0:00:08]} Nf6 {[%emt 0:00:09]} 3. c4 {[%emt 0:00:08]} c6 {[%emt 0:00:08]} 4. Nc3 {[%emt 0:00:12]} e6 {[%emt 0:00:29]} 5. Bg5 {[%emt 0:00:08]} h6 {[%emt 0:00:16]} 6. Bh4 {[%emt 0:00:07]} dxc4 {[%emt 0:00:19]} 7. a4 {[%emt 0:00:09]} g5 {[%emt 0:09:07]} 8. Bg3 {[%emt 0:00:09]} Bb4 {[%emt 0:03:22]} 9. e3 {[%emt 0:01:59]} Qa5 {[%emt 0:06:46]} 10. Qc2 {[%emt 0:02:41]} Nd5 {[%emt 0:10:42]} 11. Rc1 {[%emt 0:00:55]} Nd7 {[%emt 0:05:19]} 12. Bxc4 {[%emt 0:01:10]} N5f6 {[%emt 0:05:58]} 13. O-O {[%emt 0:00:21]} Bxc3 {[%emt 0:01:45]} 14. bxc3 {[%emt 0:02:43]} a6 {[%emt 0:03:34]} 15. Ne5 {[%emt 0:03:01]} Nh5 {[%emt 0:02:36]} 16. Bxe6 {[%emt 0:00:37]} Nxe5 {[%emt 0:07:45]} 17. Bxe5 {[%emt 0:00:52]} Rf8 {[%emt 0:02:33]} 18. Bxc8 {[%emt 0:01:21]} Rxc8 {[%emt 0:00:07]} 19. Qf5 {[%emt 0:00:19]} Rd8 {[%emt 0:01:59]} 20. Qg4 {[%emt 0:00:37]} 1-0

[Event "Serbian-ch Semifinal Women 2024"]
[Site "Paracin"]
[Date "2024.02.09"]
[Round "7.3"]
[White "Srdanovic, Jovana"]
[Black "Grozdanovic, Anastasia"]
[Result "1-0"]
[ECO "D35"]
[WhiteElo "2121"]
[BlackElo "2051"]
[Annotator "NA RC"]
[PlyCount "75"]
[EventDate "2024.02.04"]
[EventType "swiss"]
[EventCountry "SRB"]
[SourceTitle "playchess.com"]
[Source "ChessBase"]
[SourceQuality "1"]
[TimeControl "40/5400+30:1800+30"]

1. d4 {[%emt 0:00:53]} d5 {[%emt 0:00:05]} 2. c4 {[%emt 0:00:06]} e6 {[%emt 0:00:07]} 3. cxd5 {[%emt 0:00:06]} exd5 {[%emt 0:00:07]} 4. Nc3 {[%emt 0:00:05]} c6 {[%emt 0:00:52]} 5. Bf4 {[%emt 0:00:16]} Nf6 {[%emt 0:01:12]} 6. e3 {[%emt 0:00:32]} Be7 {[%emt 0:04:04]} 7. Bd3 {[%emt 0:00:35]} Nbd7 {[%emt 0:00:46]} 8. Nf3 {[%emt 0:01:06]} Nf8 {[%emt 0:03:03]} 9. h3 {[%emt 0:00:20]} Ne6 {[%emt 0:01:07]} 10. Bh2 {[%emt 0:03:00]} g6 {[%emt 0:00:17]} 11. Ne5 {[%emt 0:04:30]} Ng7 {[%emt 0:03:38]} 12. O-O {[%emt 0:08:06]} Bf5 {[%emt 0:06:07]} 13. f3 {[%emt 0:05:32]} O-O {[%emt 0:03:20]} 14. Kh1 {[%emt 0:08:30]} c5 {[%emt 0:04:36]} 15. Be2 {[%emt 0:08:24]} Rc8 {[%emt 0:05:43]} 16. Qb3 {[%emt 0:07:27]} cxd4 {[%emt 0:09:09]} 17. exd4 {[%emt 0:00:09]} Bd7 {[%emt 0:19:33]} 18. Qxb7 {[%emt 0:06:17]} Rb8 {[%emt 0:03:09]} 19. Qxa7 {[%emt 0:02:18]} Ra8 {[%emt 0:00:55]} 20. Qb7 {[%emt 0:00:14]} Rb8 {[%emt 0:00:43]} 21. Qa6 {[%emt 0:05:53]} Rxb2 {[%emt 0:02:19]} 22. Rab1 {[%emt 0:01:16]} Rxb1 {[%emt 0:02:04]} 23. Rxb1 {[%emt 0:00:26]} Ne6 {[%emt 0:02:07]} 24. Qd3 {[%emt 0:04:23]} Qa8 {[%emt 0:02:52]} 25. Qd2 {[%emt 0:05:03]} Ba4 {[%emt 0:05:01]} 26. Nxa4 {[%emt 0:05:58]} Qxa4 {[%emt 0:00:05]} 27. Bb5 {[%emt 0:00:34]} Qxd4 {[%emt 0:01:23]} 28. Qxd4 {[%emt 0:00:05]} Nxd4 {[%emt 0:00:05]} 29. a4 {[%emt 0:01:33]} Ne6 {[%emt 0:05:53]} 30. a5 {[%emt 0:01:12]} Ra8 {[%emt 0:01:27]} 31. Nc6 {[%emt 0:01:13]} Bc5 {[%emt 0:01:42]} 32. a6 {[%emt 0:00:58]} Nd4 {[%emt 0:01:21]} 33. Bg1 {[%emt 0:01:48]} Nxb5 {[%emt 0:03:10]} 34. Bxc5 {[%emt 0:00:20]} Nc7 {[%emt 0:00:56]} 35. a7 {[%emt 0:00:13]} Nfe8 {[%emt 0:00:59]} 36. Rb8 {[%emt 0:00:59]} Kg7 {[%emt 0:00:23]} 37. Ne7 {[%emt 0:01:16]} Kf6 {[%emt 0:00:35]} 38. Nxd5+ {[%emt 0:17:54]} 1-0